Cogmind - Beta 11 @@@ ROGUE MODE // 2022.04.02 @ 20:49:56 Player: Finestep Result: Destroyed by X-77 Beamer with Gatling Laser Performance ------------- Evolutions (6) 3000 Regions Visited (21) 4200 Robots Destroyed (240) 1200 Value Destroyed (8357) 8357 Prototype IDs (18) 360 Alien Tech Used (0) 0 Bonus (4754) 4754 TOTAL SCORE: 21871 Bonus ------- High Alert Combat Kills 411 Follower Combat Kills 2183 Entered Garrisons 800 Used RIF Installer 2000 Entered DSFs 500 Friendly Fire -1140 Cogmind --------- Core Integrity 0/1150 Matter 222/300 Energy 43/100 System Corruption 19% Temperature Cool (18) Movement Core (50) Location -4/DSF Parts ------- > --- POWER (2) -------- (None) > --- PROPULSION (5) --- (None) > --- UTILITY (10) ----- Experimental Hacking Suite > --- WEAPON (2) ------- (None) > --- INVENTORY (5) ---- Advanced Heat Sink Long-range Terrain Scanner Authchip [R/Combat] Relay Coupler [NC] (46) Improved Remote Datajack Peak State ------------ > --- POWER ------------ F-cell Engine Fusion Compressor > --- PROPULSION ------- Improved Treads Medium Treads Improved Medium Treads Improved Medium Treads Improved Medium Treads > --- UTILITY ---------- Cargo Storage Unit Long-range Terrain Scanner Advanced Terrain Scan Processor Layered Medium Armor Plating Medium Reflective Plating Experimental Hacking Suite Relay Coupler [Swarmer] Relay Coupler [Brawler] Relay Coupler [Duelist] > --- WEAPON ----------- Tesla Rifle Proton Cannon > --- INVENTORY -------- Micro Fission Core Medium Treads Carbon-fiber Leg Carbon-fiber Leg Carbon-fiber Leg Flexi-carbon Leg Advanced Heat Sink Improved Coolant Injector Transport Network Coupler Layered Medium Armor Plating Experimental Hacking Suite Experimental Hacking Suite Experimental Hacking Suite Authchip [R/Combat] Authchip [R/Combat] Authchip [R/Combat] Authchip [R/Combat] Authchip [R/Combat] Relay Coupler [NC] Phase Cannon Heavy Plasma Cannon Heavy Phase Cannon Heavy Phase Cannon Heavy Shock Bomb Launcher Micro-nuke Launcher Improved Remote Datajack Improved Remote Datajack Improved Remote Datajack Kinetic Spear [Rating: 96] Favorites ----------- Power F-cell Engine Engine F-cell Engine Power Core Light Nuclear Core Reactor Antimatter Reactor Propulsion Armored Treads Treads Armored Treads Leg Armored Leg Wheel Wheel Hover Unit Gravmag System Flight Unit VTOL Module Utility Large Storage Unit Device Long-range Terrain Scanner Storage Large Storage Unit Processor Improved Targeting Computer Hackware Relay Coupler [NC] Protection Layered Medium Armor Plating Weapon Improved Assault Rifle Energy Gun Improved Medium Laser Energy Cannon Proton Cannon Ballistic Gun Improved Assault Rifle Ballistic Cannon Flak Cannon Launcher Long-range Missile Launcher Special Weapon Remote Datajack Impact Weapon Power Maul Slashing Weapon Plasma Sword Piercing Weapon Lance Special Melee Weapon Improved Datajack Build | -11 -10 -9 -9 -8 -8 -8 -7 -7 -7 -7 -6 -6 -6 -6 -5 -5 -5 -5 -5 -4 -4 ------- Run | Scr Mat Mat Min Mat Sto Gar Fac Was Fac Gar Fac Gar Fac Gar Fac Was Fac Upp Upp Fac DSF Slots Evolved 12 | . . 2 . 2 . . 2 . . . 2 . . . 2 . . . . 2 . Power 1 | . . . . . . . . . . . . . . . 1 . . . . . . Propulsion 3 | . . 1 . 1 . . . . . . . . . . . . . . . 1 . Utility 8 | . . 1 . 1 . . 2 . . . 2 . . . 1 . . . . 1 . Weapon . | . . . . . . . . . . . . . . . . . . . . . . Parts Attached 360 | 7 19 27 8 24 1 10 34 9 11 24 40 9 20 14 12 7 40 26 1 2 15 Power 21 | 1 1 2 . . . 1 1 1 2 1 2 . 1 . 1 . 3 3 . . 1 Engine 13 | 1 1 1 . . . . 1 . 2 . . . 1 . 1 . 3 2 . . . Core 7 | . . 1 . . . 1 . . . 1 2 . . . . . . 1 . . 1 Reactor 1 | . . . . . . . . 1 . . . . . . . . . . . . . Propulsion 56 | 2 3 7 . 1 . . 1 1 3 8 9 . 1 . . . 8 8 . 1 3 Treads 28 | . 3 6 . 1 . . 1 1 1 2 1 . . . . . 4 7 . 1 . Leg 16 | 2 . . . . . . . . . . 7 . 1 . . . 2 1 . . 3 Wheel 3 | . . 1 . . . . . . . . . . . . . . 2 . . . . Hover 5 | . . . . . . . . . 2 2 1 . . . . . . . . . . Flight 4 | . . . . . . . . . . 4 . . . . . . . . . . . Utility 122 | 2 6 3 3 7 1 . 15 3 3 6 17 5 11 7 5 2 11 8 1 1 5 Device 32 | 1 4 . 1 3 . . 3 . . 1 3 2 3 . 2 1 3 4 . 1 . Storage 7 | 1 1 . . . . . 1 . 1 . 1 . . 1 . . 1 . . . . Processor 10 | . 1 . . 1 . . 1 . 1 1 4 . 1 . . . . . . . . Hackware 30 | . . . . . . . 6 1 . 2 4 2 3 4 1 . 4 . . . 3 Protection 43 | . . 3 2 3 1 . 4 2 1 2 5 1 4 2 2 1 3 4 1 . 2 Artifact . | . . . . . . . . . . . . . . . . . . . . . . Weapon 161 | 2 9 15 5 16 . 9 17 4 3 9 12 4 7 7 6 5 18 7 . . 6 Energy Gun 19 | 2 1 2 3 2 . . . . . 3 . . . . . . 2 3 . . 1 Energy Cannon 24 | . . . . . . . . . . . 1 1 4 4 2 2 4 2 . . 4 Ballistic Gun 36 | . 6 10 . 6 . 2 8 2 1 . 1 . . . . . . . . . . Ballistic Cannon 8 | . . 1 . 2 . 3 . . . 2 . . . . . . . . . . . Launcher 17 | . 1 2 2 1 . 1 . 1 . 2 2 1 . . . . 2 1 . . 1 Special Weapon 24 | . 1 . . . . . . 1 . . 5 2 2 2 3 1 6 1 . . . Impact Weapon 19 | . . . . 5 . 3 4 . 2 1 3 . 1 . . . . . . . . Slashing Weapon 1 | . . . . . . . . . . . . . . . . . 1 . . . . Piercing Weapon 7 | . . . . . . . . . . . . . . 1 1 2 3 . . . . Special Melee Weapon 6 | . . . . . . . 5 . . 1 . . . . . . . . . . . Unidentified Prototypes 6 | . . 2 . . . . 1 . . . . . 1 . . . 1 . . . 1 Corrupted Parts 19 | . . . . . . . . 1 . 5 1 . . . . . 5 5 . 1 1 System Corruption 122 | . . . . . . . . 2 . 31 9 . . . . . 32 29 . 9 10 Parts Lost 61 | . 1 2 . . . 1 1 5 1 10 4 . . . . . 6 9 . . 21 Power 10 | . . 1 . . . 1 . 1 1 1 . . . . . . . 2 . . 3 Propulsion 24 | . . 1 . . . . . 3 . 4 1 . . . . . 5 3 . . 7 Utility 17 | . . . . . . . 1 . . 4 3 . . . . . 1 3 . . 5 Weapon 10 | . 1 . . . . . . 1 . 1 . . . . . . . 1 . . 6 Highest Loss Streak 20 | . 1 1 . . . 1 1 5 1 9 3 . . . . . 2 4 . . 20 To Critical Strikes 3 | . . . . . . . . 2 . . . . . . . . . . . . 1 Average Slot Usage (%) 94 | . 99 97 100 100 100 98 92 85 81 90 94 92 96 99 100 99 90 91 94 94 71 Engine 5 | . 14 7 . . . . 5 5 6 4 . . 2 6 11 11 10 7 5 5 3 Core 3 | . . 3 11 9 9 7 1 . . 1 6 6 2 . . . . 2 5 5 4 Treads 16 | . 22 28 33 36 36 36 29 11 10 12 2 . . . . . 3 20 23 26 17 Leg 7 | . 4 . . . . . . . . . 21 26 26 26 23 23 12 1 . . 1 Hover 1 | . . . . . . . . 5 11 8 1 . . . . . . . . . . Device 4 | . 10 . . 8 9 9 3 . . 1 7 2 5 3 5 5 3 4 5 10 4 Storage 7 | . 14 11 11 9 9 9 7 7 7 4 1 6 6 6 5 5 5 5 5 5 4 Processor 10 | . 3 11 11 9 9 9 15 15 15 19 17 17 7 6 5 5 5 5 5 5 4 Hackware 11 | . . . . . . . 3 14 8 7 14 14 22 22 26 29 27 21 17 15 16 Protection 6 | . . 11 10 9 9 9 7 6 3 6 5 4 5 12 7 4 4 6 11 10 6 Energy Gun 3 | . 4 6 21 6 . . . . . 4 . . . . . . 1 6 5 5 2 Energy Cannon 1 | . . . . . . . . . . . . 3 6 5 4 . 2 3 5 5 4 Ballistic Gun 6 | . 23 12 . 10 . 1 14 12 11 2 . . . . . . . . . . . Ballistic Cannon 1 | . . 2 . . 18 15 . . . 1 . . . . . . . . . . . Special Weapon 1 | . . . . . . . . 1 . . 5 2 2 4 3 4 2 . . . . Impact Weapon 1 | . . . . . . . . . 3 3 5 6 3 . . . . . . . . Naked Turns 1 | . . . . . . . . . . . . . . . . . . . . . 1 Heaviest Build 193 | 13 28 38 38 46 47 47 65 54 69 76 41 48 53 56 74 62 184 183 186 188 193 Greatest Support 141 | 20 40 60 60 80 80 80 80 80 48 88 64 64 68 68 68 68 97 111 111 141 141 Greatest Overweight (x) 15 | 1 . 3 . . . . . 11 6 3 1 . . . 1 . 15 3 1 1 4 Average Overweight (x) . | . . . . . . . . 3 1 . . . . . . . 1 1 1 1 . Largest Inventory Capacity 30 | 8 15 15 15 15 15 15 15 15 20 20 10 10 10 15 15 15 30 30 30 30 30 Average Capacity 15 | 7 13 15 15 15 15 15 15 15 16 14 6 10 10 11 15 15 25 30 30 30 28 Most Carried 30 | 4 15 15 15 15 15 15 15 15 16 20 9 10 10 15 15 15 19 23 23 22 30 Average Carried 13 | 2 12 14 14 14 14 14 14 14 14 12 5 9 9 11 14 15 15 19 23 21 23 Final Capacity 30 | 8 15 15 15 15 15 15 15 15 20 5 10 10 10 15 15 15 30 30 30 30 5 Final Carried 23 | 4 15 15 15 15 15 15 15 15 16 5 9 10 10 15 15 15 19 23 23 21 5 Class Distribution -------------------- 45% | Mutant 23% | Bothacker-Mutant 13% | Botlord-Mutant 7% | Commander-Mutant 5% | Scavenger-Mutant Dominant Class ---------------- Mutant | -10/Materials Mutant | -9/Materials Mutant | -9/Mines Mutant | -8/Materials Commander-Mutant | -8/Storage Commander-Mutant | -8/Garrison Mutant | -7/Factory Mutant | -7/Waste Mutant | -7/Factory Mutant | -7/Garrison Assassin | -6/Factory Bothacker-Mutant | -6/Garrison Bothacker-Mutant | -6/Factory Bothacker-Mutant | -6/Garrison Botlord-Mutant | -5/Factory Botlord-Mutant | -5/Waste Bothacker-Mutant | -5/Factory Bothacker-Mutant | -5/Upper Caves Bothacker-Mutant | -5/Upper Caves Bothacker-Mutant | -4/Factory Bothacker-Mutant | -4/DSF Resources | -11 -10 -9 -9 -8 -8 -8 -7 -7 -7 -7 -6 -6 -6 -6 -5 -5 -5 -5 -5 -4 -4 ----------- Run | Scr Mat Mat Min Mat Sto Gar Fac Was Fac Gar Fac Gar Fac Gar Fac Was Fac Upp Upp Fac DSF Matter Collected 7582 | 270 608 1024 104 533 10 339 578 241 358 345 705 269 354 256 233 136 678 480 . . 61 Remotely . | . . . . . . . . . . . . . . . . . . . . . . Salvage Created 9367 | 231 774 1348 220 715 . 218 821 224 313 435 1045 477 231 212 321 147 585 928 . . 122 Parts 467 | 13 60 101 11 48 . 20 51 . 13 22 22 14 2 5 13 8 26 34 . . 4 Haulers Intercepted 7 | . 1 2 . . . . 1 . 1 . . . . . 1 . 1 . . . . Recyclers Shooed 11 | . 1 4 . 2 . . . . 2 . 2 . . . . . . . . . . Parts Field Recycled . | . . . . . . . . . . . . . . . . . . . . . . Retrieved Matter . | . . . . . . . . . . . . . . . . . . . . . . Parts Self-Destructed 6 | . . . . . . . . . . . . . . . . . . 6 . . . Prevented 31 | . . . . . . . . . . . . . . . . . . 31 . . . Kills | -11 -10 -9 -9 -8 -8 -8 -7 -7 -7 -7 -6 -6 -6 -6 -5 -5 -5 -5 -5 -4 -4 ------- Run | Scr Mat Mat Min Mat Sto Gar Fac Was Fac Gar Fac Gar Fac Gar Fac Was Fac Upp Upp Fac DSF Combat Hostiles Destroyed 164 | . 15 32 9 14 . 14 12 1 3 15 13 13 1 . 1 . 7 13 . . 1 Melee 6 | . . . . . . . . . 2 . 3 . . . . . 1 . . . . Guns 66 | . 14 16 4 8 . . 12 1 1 3 2 . . . . . . 5 . . . Cannons 34 | . . 10 . . . 11 . . . 4 . 3 1 . 1 . 3 1 . . . AOE 39 | . . 6 5 5 . 3 . . . 7 . 10 . . . . 1 2 . . . Classes Destroyed 20 | 3 6 2 1 1 . . 1 1 1 1 . . . . . 1 1 1 . . . Worker 17 | 1 2 2 2 . . . 4 . . . 1 . 1 . 1 . 3 . . . . Builder 7 | . 1 2 . 2 . . . . 1 . . . 1 . . . . . . . . Tunneler 9 | 5 . 1 . 1 . . . . . . 1 . . . 1 . . . . . . Hauler 7 | . 1 2 . . . . 1 . 1 . . . . . 1 . 1 . . . . Recycler 17 | 1 1 5 . 2 . . 1 . 2 . 3 . 1 . 1 . . . . . . Mechanic 1 | . . . . 1 . . . . . . . . . . . . . . . . . Operator 3 | . 1 . . 2 . . . . . . . . . . . . . . . . . Watcher 9 | . 3 2 . 2 . . 1 . . . . . . . 1 . . . . . . Swarmer 61 | . 6 17 3 4 . 9 3 . . 12 . 5 . . . . 2 . . . . Grunt 72 | . 9 8 5 8 . 3 6 . 1 . 10 10 . . . . 2 10 . . . Brawler 4 | . . . . . . . . . . 2 . . . . 1 . . 1 . . . Duelist 2 | . . . 1 . . . . . . . 1 . . . . . . . . . . Protector 1 | . . 1 . . . . . . . . . . . . . . . . . . . Sentry 17 | . . 6 . 2 . 2 2 . . 1 . 1 . . . . 1 1 . . 1 Specialist 1 | . . . . . . . . . . . . . . . . . 1 . . . . Hunter 2 | . . . . . . . . . 1 . . . 1 . . . . . . . . Programmer 6 | . . . . . . . 2 . 1 . 2 . . . . . 1 . . . . Behemoth 1 | . . . . . . . . . . . . . . . . . . 1 . . . Compactor 1 | . . . . . . . . 1 . . . . . . . . . . . . . Martyr 2 | . . . . . . . . . . . . . . . . 2 . . . . . Best Kill Streak 12 | 7 7 6 4 6 . 4 3 1 2 12 7 12 2 . 4 . 4 4 . . 1 Combat Bots Only 12 | . 4 5 3 6 . 4 2 1 1 12 7 12 1 . 1 . 2 4 . . 1 Max Kills in Single Turn 3 | 1 2 2 2 2 . 3 2 1 1 3 1 3 1 . 2 1 1 1 . . 1 Gunslinging 1 | . 1 1 1 . . . . . . . . . . . . . . . . . . Exploded 3 | . . 2 2 2 . 3 . . . 3 . 3 . . . . 1 1 . . . Melee 1 | . . . . . . . . . 1 . 1 . . . . . 1 . . . . Uniques/NPCs Destroyed . | . . . . . . . . . . . . . . . . . . . . . . Combat | -11 -10 -9 -9 -8 -8 -8 -7 -7 -7 -7 -6 -6 -6 -6 -5 -5 -5 -5 -5 -4 -4 -------- Run | Scr Mat Mat Min Mat Sto Gar Fac Was Fac Gar Fac Gar Fac Gar Fac Was Fac Upp Upp Fac DSF Damage Taken 14431 | . 642 1062 255 287 . 327 1022 236 217 1496 928 690 310 247 146 138 1619 1502 . . 3307 Core 2752 | . 88 184 55 42 . 36 87 . 14 264 159 124 36 41 . 34 245 179 . . 1164 Absorbed by Shields 306 | . . . . 114 . 133 59 . . . . . . . . . . . . . . Redirected to Shielding 101 | . . . . . . . . . . . . . . . . . 77 24 . . . Regen/Repaired (Parts) 810 | . 70 . . . . . 312 338 . . 44 . 46 . . . . . . . . Core Remaining (%) 63 | 100 64 . 40 . . 85 . . . 47 . . . 57 . . . . 54 . . Volleys Fired 758 | 11 89 110 19 60 . 20 52 61 4 34 37 28 18 23 29 12 69 42 . . 40 Largest 2 | 2 2 2 2 2 . 2 2 2 2 2 1 1 2 2 1 1 2 2 . . 2 Hottest 175 | 90 100 112 112 112 . 88 46 46 46 110 36 85 150 150 90 90 120 135 . . 175 Shots Fired 1197 | 22 174 215 32 115 . 39 103 102 10 37 37 28 21 28 29 12 76 69 . . 48 Gun 807 | 22 171 174 27 111 . . 103 94 10 16 10 . . . . . 15 38 . . 16 Cannon 223 | . . 36 . . . 38 . . . 16 . 15 6 16 13 3 25 24 . . 31 Launcher 48 | . 2 5 5 4 . 1 . 2 . 5 3 10 . . . . 5 5 . . 1 Special 119 | . 1 . . . . . . 6 . . 24 3 15 12 16 9 31 2 . . . Kinetic 664 | . 132 190 . 71 . 38 103 94 10 16 10 . . . . . . . . . . Thermal 198 | 11 24 20 27 40 . . . . . . . 15 . 2 13 5 16 . . . 25 Explosive 30 | . 2 5 5 4 . 1 . 2 . 1 . 10 . . . . . . . . . Electromagnetic 189 | 11 16 . . . . . . . . 20 3 . 6 14 . . 29 67 . . 23 Robot Hit Streak 54 | 5 12 22 20 15 . 7 13 54 6 13 10 9 6 5 4 2 8 11 . . 12 Robot Miss Streak 12 | 1 5 5 4 3 . 12 2 1 1 3 5 3 2 3 2 2 3 3 . . 7 Penetration Max . | . . . . . . . . . . . . . . . . . . . . . . Secondary Targets 13 | . 1 5 2 2 . . 2 . . 1 . . . . . . . . . . . Max Gunslinging Chain 1 | . 1 1 1 1 . . 1 . . 1 . . . . . . . . . . . Shots Hit Robots 882 | 12 110 134 25 79 . 31 96 85 14 23 58 11 17 24 16 24 54 41 . . 28 Core Hits 393 | 7 37 65 12 41 . 39 40 16 5 25 19 33 1 5 6 3 13 18 . . 8 Critical Kills 3 | . . . . . . . . . 1 . 2 . . . . . . . . . . Critical Parts Destroyed 13 | . 1 . . . . . 1 . 3 1 7 . . . . . . . . . . Critical Strikes 42 | 1 5 3 1 2 . . 1 2 4 3 10 . 2 2 . 3 1 2 . . . Burn 9 | 1 4 1 1 2 . . . . . . . . . . . . . . . . . Destroy 5 | . 1 . . . . . 1 2 1 . . . . . . . . . . . . Blast 4 | . . 2 . . . . . . . 2 . . . . . . . . . . . Corrupt 5 | . . . . . . . . . . . . . 2 1 . . . 2 . . . Smash 14 | . . . . . . . . . 3 1 10 . . . . . . . . . . Impale 5 | . . . . . . . . . . . . . . 1 . 3 1 . . . . Melee Attacks 127 | . . . . 5 . 3 26 . 12 4 36 1 5 9 1 17 8 . . . . Impact 76 | . . . . 5 . 3 11 . 12 3 36 1 5 . . . . . . . . Slashing . | . . . . . . . . . . . . . . . . . . . . . . Piercing 35 | . . . . . . . . . . . . . . 9 1 17 8 . . . . Sneak Attacks 45 | . . . . . . . 13 . 3 . 6 . 2 . 1 17 3 . . . . Combat Hostiles 16 | . . . . . . . . . . . 1 . . . . 14 1 . . . . Follow-up Attacks . | . . . . . . . . . . . . . . . . . . . . . . Damage Inflicted 21948 | 180 1372 2456 924 1902 . 789 1317 1454 699 1060 2036 1758 306 667 629 787 1559 1237 . . 816 Guns 8512 | 157 1342 1443 391 1280 . . 1317 1201 105 242 209 . . . . . 180 475 . . 170 Cannons 3697 | . . 520 . . . 625 . . . 286 . 248 99 246 164 72 471 351 . . 615 Explosions 5640 | 23 30 493 533 622 . 164 . 253 . 484 125 1510 . . 408 . 553 411 . . 31 Melee 4031 | . . . . . . . . . 574 48 1699 . 179 421 57 698 355 . . . . Ramming 51 | . . . . . . . . . 20 . 3 . 28 . . . . . . . . Kinetic 7230 | . 952 1771 . 764 . 625 1317 1201 105 286 209 . . . . . . . . . . Thermal 3034 | 74 229 192 391 516 . . . . . 265 . 248 . 68 164 89 290 . . . 508 Explosive 4184 | . . 493 533 622 . 164 . 253 . 18 . 1510 . . 408 . 183 . . . . Electromagnetic 3418 | 106 191 . . . . . . . . 443 125 . 99 178 . . 731 1237 . . 308 Impact 2500 | . . . . . . . . . 574 48 1699 . 179 . . . . . . . . Slashing . | . . . . . . . . . . . . . . . . . . . . . . Piercing 1531 | . . . . . . . . . . . . . . 421 57 698 355 . . . . Highest Corruption 95 | . . 1 1 . . . 2 62 63 95 11 11 12 13 . . 34 63 63 9 19 Average Corruption 25 | . . 1 1 . . . 1 34 62 76 4 11 11 12 . . 20 49 63 9 10 Corruption Purged . | . . . . . . . . . . . . . . . . . . . . . . Corruption Blocked . | . . . . . . . . . . . . . . . . . . . . . . Effects 370 | . . 5 5 . . . 4 38 62 38 25 16 31 23 . . 38 70 5 1 9 Message Errors 91 | . . 2 2 . . . 1 9 19 6 9 2 8 9 . . 9 11 1 1 2 Matter Fused 79 | . . 2 1 . . . 1 6 9 7 2 8 10 4 . . 11 14 2 . 2 Heat Flow Errors 48 | . . 1 . . . . 1 2 10 5 5 1 2 . . . 6 14 1 . . Energy Discharges 42 | . . . 1 . . . . 4 8 6 3 1 7 2 . . . 8 1 . 1 Parts Rejected 1 | . . . . . . . . . . . . . . . . . 1 . . . . Data Loss (minor) 46 | . . . . . . . 1 2 9 4 5 3 1 4 . . 6 8 . . 3 Data Loss (major) 17 | . . . . . . . . 3 4 2 1 . 3 2 . . . 2 . . . Misfires 8 | . . . . . . . . . 3 1 . . . . . . . 4 . . . Alerts 4 | . . . . . . . . 1 . . . 1 . 1 . . . 1 . . . Misdirections 12 | . . . . . . . . . . 1 . . . 1 . . 4 5 . . 1 Weapon Failures 22 | . . . 1 . . . . 11 . 6 . . . . . . 1 3 . . . Overload Shots . | . . . . . . . . . . . . . . . . . . . . . . Overflow Damage 1225 | 5 . 12 5 7 . . . . 292 59 518 . 140 . 83 . 66 29 . . 9 Projectiles 59 | . . . . . . . . . . . . . 11 . 17 . 2 29 . . . Explosions 162 | 5 . 12 5 7 . . . . . 11 . . . . 66 . 47 . . . 9 Melee 1004 | . . . . . . . . . 292 48 518 . 129 . . . 17 . . . . Knockbacks 38 | . . 2 . . . 14 . . 2 . 18 . 2 . . . . . . . . Impact 17 | . . . . . . . . . 2 . 14 . 1 . . . . . . . . Kinetic 16 | . . 2 . . . 14 . . . . . . . . . . . . . . . Secondary 5 | . . . . . . . . . . . 4 . 1 . . . . . . . . Self-Inflicted Damage 347 | . 53 . 13 . . . . 117 . 31 . 44 . . . . 11 64 . . 14 Shots 13 | . 3 . 1 . . . . 2 . 2 . 1 . . . . 1 2 . . 1 Rammed 5 | . . . . . . . . . 5 . . . . . . . . . . . . Targets Rammed 10 | . . . . . . . . . 5 . 1 . 4 . . . . . . . . Kicked 5 | . . . . . . . . . . . 1 . 4 . . . . . . . . Crushed . | . . . . . . . . . . . . . . . . . . . . . . Highest Temperature 444 | 120 282 267 315 257 . 132 275 184 235 233 259 216 288 180 152 76 294 444 170 . 39 Average Temperature 79 | 48 95 43 96 75 . 52 95 95 96 90 103 84 108 62 47 33 93 111 90 . 20 Received Heat Transfer 2523 | . 234 303 72 96 . 66 131 . 81 . 394 111 6 51 . 36 381 468 . . 93 Effects 10 | . . . . . . . . . . . . 1 1 . . . 2 6 . . . Energy Bleed 2 | . . . . . . . . . . . . 1 1 . . . . . . . . Interference 5 | . . . . . . . . . . . . . . . . . 2 3 . . . Matter Decay 2 | . . . . . . . . . . . . . . . . . . 2 . . . Short Circuit 1 | . . . . . . . . . . . . . . . . . . 1 . . . Siege Activations . | . . . . . . . . . . . . . . . . . . . . . . Robots Corrupted 9 | . . . . . . . . . . . 1 . . . . . 2 5 . . 1 Combat Hostiles 9 | . . . . . . . . . . . 1 . . . . . 2 5 . . 1 Parts Fried 43 | . 1 . . . . . . . 7 3 14 . 3 . . . 7 8 . . . Impact Corruptions 31 | . . . . . . . . . 7 1 18 . 5 . . . . . . . . Robots Melted 2 | . 1 . . 1 . . . . . . . . . . . . . . . . . Combat Hostiles 2 | . 1 . . 1 . . . . . . . . . . . . . . . . . Parts Melted 20 | . 3 4 6 5 . . . . . . . . . . . 1 1 . . . . Heat Transferred 5782 | 272 938 472 925 1258 . . . . . 400 . 296 . 74 185 111 296 . . . 555 Parts Sabotaged . | . . . . . . . . . . . . . . . . . . . . . . Parts Stolen . | . . . . . . . . . . . . . . . . . . . . . . Parts Stripped . | . . . . . . . . . . . . . . . . . . . . . . Power Chain Reactions 5 | 1 1 . . . . . . . . 2 . . . . . . . 1 . . . Missiles Intercepted . | . . . . . . . . . . . . . . . . . . . . . . Alert | -11 -10 -9 -9 -8 -8 -8 -7 -7 -7 -7 -6 -6 -6 -6 -5 -5 -5 -5 -5 -4 -4 ------- Run | Scr Mat Mat Min Mat Sto Gar Fac Was Fac Gar Fac Gar Fac Gar Fac Was Fac Upp Upp Fac DSF Peak Influence 961 | 35 332 693 443 332 63 961 619 125 85 305 314 681 449 525 517 164 634 . . 81 100 Initial 504 | . 22 62 238 92 52 40 504 124 . . 159 121 357 65 275 86 . . . 81 60 Average 254 | 11 216 419 318 177 60 684 168 63 25 122 186 561 324 333 260 71 387 . . 81 60 Maximum Alert Level 3 | . 1 2 2 1 . 3 2 . . 1 1 2 2 2 2 . 2 . . . . Low Security (%) 47 | 100 27 20 . 71 100 18 66 100 100 63 69 10 . 24 20 100 19 . . 100 100 Level 1 33 | . 72 28 95 28 . 3 21 . . 36 30 3 80 27 79 . 16 . . . . Level 2 15 | . . 50 4 . . 12 11 . . . . 86 19 47 . . 63 . . . . Level 3 3 | . . . . . . 65 . . . . . . . . . . . . . . . Level 4 . | . . . . . . . . . . . . . . . . . . . . . . Level 5 . | . . . . . . . . . . . . . . . . . . . . . . High Security . | . . . . . . . . . . . . . . . . . . . . . . Max Security . | . . . . . . . . . . . . . . . . . . . . . . Squads Dispatched 52 | . 4 4 . 3 . . 12 . 1 . 7 . 4 . 4 . 10 . . . 3 Investigation 17 | . 2 2 . 1 . . 3 . . . 5 . 2 . 1 . 1 . . . . Extermination 6 | . . . . . . . 1 . 1 . 2 . . . 1 . 1 . . . . Reinforcement 16 | . 2 1 . 2 . . 2 . . . . . 1 . 1 . 4 . . . 3 Assault 2 | . . 1 . . . . . . . . . . . . . . 1 . . . . Garrison 11 | . . . . . . . 6 . . . . . 1 . 1 . 3 . . . . Intercept . | . . . . . . . . . . . . . . . . . . . . . . Searches Triggered . | . . . . . . . . . . . . . . . . . . . . . . Construction Impeded 1 | . . . . . . . . . . . . . . . . . 1 . . . . Haulers Reinforced 3 | . . . . . . . 1 . . . . . . . . . 2 . . . . Active Scanning Responses . | . . . . . . . . . . . . . . . . . . . . . . Cargo Convoy Interrupts . | . . . . . . . . . . . . . . . . . . . . . . Stealth | -11 -10 -9 -9 -8 -8 -8 -7 -7 -7 -7 -6 -6 -6 -6 -5 -5 -5 -5 -5 -4 -4 --------- Run | Scr Mat Mat Min Mat Sto Gar Fac Was Fac Gar Fac Gar Fac Gar Fac Was Fac Upp Upp Fac DSF Distress Signals 6 | . 2 1 . . . . . . . . 1 . . . 1 . 1 . . . . Communications Jammed . | . . . . . . . . . . . . . . . . . . . . . . Distress Signals . | . . . . . . . . . . . . . . . . . . . . . . Times Spotted 366 | . 27 49 9 30 . 26 26 5 6 16 31 18 8 19 14 8 40 19 . . 15 Peak Tracking Total 11 | . 5 7 3 6 . 7 4 2 2 11 5 11 3 4 3 4 7 4 . . 8 Tactical Retreats 21 | . . . . . . . 3 . . 1 3 . . . 1 2 6 2 . . 3 Traps | -11 -10 -9 -9 -8 -8 -8 -7 -7 -7 -7 -6 -6 -6 -6 -5 -5 -5 -5 -5 -4 -4 ------- Run | Scr Mat Mat Min Mat Sto Gar Fac Was Fac Gar Fac Gar Fac Gar Fac Was Fac Upp Upp Fac DSF Traps Triggered 11 | . . . . 1 . . 1 . 1 3 2 . . 1 1 . . . . . 1 Indirectly . | . . . . . . . . . . . . . . . . . . . . . . Trap Hack Attempts . | . . . . . . . . . . . . . . . . . . . . . . Triggered . | . . . . . . . . . . . . . . . . . . . . . . Disarmed . | . . . . . . . . . . . . . . . . . . . . . . Reprogrammed . | . . . . . . . . . . . . . . . . . . . . . . Reused . | . . . . . . . . . . . . . . . . . . . . . . Traps Extracted . | . . . . . . . . . . . . . . . . . . . . . . Installed . | . . . . . . . . . . . . . . . . . . . . . . Triggered 3 | . . . . . . . . . . . . . . . . . . . 3 . . Machines | -11 -10 -9 -9 -8 -8 -8 -7 -7 -7 -7 -6 -6 -6 -6 -5 -5 -5 -5 -5 -4 -4 ---------- Run | Scr Mat Mat Min Mat Sto Gar Fac Was Fac Gar Fac Gar Fac Gar Fac Was Fac Upp Upp Fac DSF Machines Disabled 38 | . 1 1 1 2 . 3 7 . 1 1 . 3 . 2 8 . 7 . . . 1 Max in Single Turn 5 | . 1 1 1 1 . 1 . . 1 1 . 1 . 1 5 . 3 . . . 1 Garrison Access 5 | . . . . . . . 2 . . . 1 . 1 . 1 . . . . . . Garrison Relay 8 | . . . . . . 3 . . . 1 . 2 . 2 . . . . . . . Machines Sabotaged . | . . . . . . . . . . . . . . . . . . . . . . Garrisons Compromised . | . . . . . . . . . . . . . . . . . . . . . . Overloaded Fab Kills . | . . . . . . . . . . . . . . . . . . . . . . Hacking | -11 -10 -9 -9 -8 -8 -8 -7 -7 -7 -7 -6 -6 -6 -6 -5 -5 -5 -5 -5 -4 -4 --------- Run | Scr Mat Mat Min Mat Sto Gar Fac Was Fac Gar Fac Gar Fac Gar Fac Was Fac Upp Upp Fac DSF Machines Accessed 53 | . 6 5 . 1 2 . 11 . 2 . 9 . 6 . 6 . 4 . . 1 . Terminals 28 | . 4 4 . 1 1 . 5 . . . 3 . 3 . 2 . 4 . . 1 . Fabricators 6 | . . . . . . . 2 . 1 . 2 . . . 1 . . . . . . Repair Stations 6 | . 1 . . . . . 2 . . . 1 . 1 . 1 . . . . . . Recycling Units 4 | . 1 1 . . . . . . . . 1 . . . 1 . . . . . . Scanalyzers . | . . . . . . . . . . . . . . . . . . . . . . Garrison Access 9 | . . . . . 1 . 2 . 1 . 2 . 2 . 1 . . . . . . Total Hacks 136 | . 18 16 . 2 4 . 33 . 2 . 22 . 15 . 12 . 11 . . 1 . Successful 64 | . 9 7 . 2 2 . 16 . 1 . 9 . 6 . 6 . 5 . . 1 . Failed 71 | . 9 8 . . 2 . 17 . 1 . 13 . 9 . 6 . 6 . . . . Catastrophic 12 | . 2 1 . . . . 5 . . . . . . . 2 . 2 . . . . Database Lockouts 1 | . . 1 . . . . . . . . . . . . . . . . . . . Manual 66 | . 8 10 . 1 . . 19 . 1 . 11 . 3 . 8 . 5 . . . . Terminals 84 | . 14 12 . 2 2 . 19 . . . 8 . 8 . 7 . 11 . . 1 . Fabricators 14 | . . . . . . . 7 . 1 . 5 . . . 1 . . . . . . Repair Stations 12 | . 2 . . . . . 4 . . . 3 . 2 . 1 . . . . . . Recycling Units 9 | . 2 4 . . . . . . . . 2 . . . 1 . . . . . . Scanalyzers . | . . . . . . . . . . . . . . . . . . . . . . Garrison Access 17 | . . . . . 2 . 3 . 1 . 4 . 5 . 2 . . . . . . Terminal Hacks 24 | . 3 3 . 1 1 . 7 . . . 2 . 1 . 2 . 3 . . 1 . Record 1 | . . . . . . . . . . . . . . . 1 . . . . . . Part Schematic 4 | . 1 . . . . . 2 . . . 1 . . . . . . . . . . Robot Analysis 1 | . . 1 . . . . . . . . . . . . . . . . . . . Prototype ID Bank 2 | . . 1 . 1 . . . . . . . . . . . . . . . . . Open Door 1 | . . . . . 1 . . . . . . . . . . . . . . . . Open DSF 2 | . . . . . . . . . . . . . 1 . . . . . . 1 . Branch Access Points 2 | . . 1 . . . . . . . . . . . . . . 1 . . . . Terminal Index 2 | . 1 . . . . . 1 . . . . . . . . . . . . . . Fabricator Index 1 | . . . . . . . 1 . . . . . . . . . . . . . . Unreport Threat 3 | . . . . . . . 2 . . . . . . . 1 . . . . . . Locate Traps 1 | . 1 . . . . . . . . . . . . . . . . . . . . Recall Investigation 1 | . . . . . . . . . . . . . . . . . 1 . . . . Hauler Manifests 2 | . . . . . . . . . . . 1 . . . . . 1 . . . . Registered Components 1 | . . . . . . . 1 . . . . . . . . . . . . . . Fabricator Hacks . | . . . . . . . . . . . . . . . . . . . . . . Repair Station Hacks 8 | . 2 . . . . . 2 . . . 2 . 2 . . . . . . . . Scan Component 4 | . 1 . . . . . 1 . . . 1 . 1 . . . . . . . . Repair 4 | . 1 . . . . . 1 . . . 1 . 1 . . . . . . . . Recycling Unit Hacks 4 | . 1 1 . . . . . . . . 1 . . . 1 . . . . . . Retrieve Components 4 | . 1 1 . . . . . . . . 1 . . . 1 . . . . . . Scanalyzer . | . . . . . . . . . . . . . . . . . . . . . . Garrison Access Hacks 12 | . . . . . 1 . 3 . 1 . 2 . 3 . 2 . . . . . . Unlock Access 4 | . . . . . 1 . . . 1 . 1 . 1 . . . . . . . . Seal Access 5 | . . . . . . . 2 . . . 1 . 1 . 1 . . . . . . Coupler Status 3 | . . . . . . . 1 . . . . . 1 . 1 . . . . . . Unauthorized Hacks 16 | . 3 3 . 1 . . 4 . . . 2 . . . 1 . 2 . . . . Terminals 10 | . 2 2 . 1 . . 3 . . . . . . . . . 2 . . . . Track 1 | . . . . . . . . . . . . . . . . . 1 . . . . Assimilate 1 | . . 1 . . . . . . . . . . . . . . . . . . . Botnet 7 | . 2 1 . 1 . . 2 . . . . . . . . . 1 . . . . Operators 1 | . . . . . . . 1 . . . . . . . . . . . . . . Fabricators 1 | . . . . . . . . . . . 1 . . . . . . . . . . Fabnet 1 | . . . . . . . . . . . 1 . . . . . . . . . . Repair Stations 2 | . . . . . . . 1 . . . . . . . 1 . . . . . . Mechanics 2 | . . . . . . . 1 . . . . . . . 1 . . . . . . Recycling Units 3 | . 1 1 . . . . . . . . 1 . . . . . . . . . . Tunnel 3 | . 1 1 . . . . . . . . 1 . . . . . . . . . . Scanalyzers . | . . . . . . . . . . . . . . . . . . . . . . Garrison Access . | . . . . . . . . . . . . . . . . . . . . . . Data Cores Recovered . | . . . . . . . . . . . . . . . . . . . . . . Used . | . . . . . . . . . . . . . . . . . . . . . . Hacking Detections 44 | . 5 5 . 1 2 . 8 . 2 . 7 . 5 . 5 . 4 . . . . Full Trace Events 12 | . . 1 . . . . 3 . . . 4 . 2 . 1 . 1 . . . . Feedback Events 2 | . . . . . . . . . . . 1 . 1 . . . . . . . . Corruption 2 | . . . . . . . . . . . 1 . 1 . . . . . . . . Feedback Blocked . | . . . . . . . . . . . . . . . . . . . . . . Robot Schematics Acquired . | . . . . . . . . . . . . . . . . . . . . . . Robots Built . | . . . . . . . . . . . . . . . . . . . . . . Authchips . | . . . . . . . . . . . . . . . . . . . . . . Time . | . . . . . . . . . . . . . . . . . . . . . . Total Robot Build Rating . | . . . . . . . . . . . . . . . . . . . . . . Part Schematics Acquired 4 | . 1 . . . . . 2 . . . 1 . . . . . . . . . . Parts Built . | . . . . . . . . . . . . . . . . . . . . . . Authchips . | . . . . . . . . . . . . . . . . . . . . . . Time . | . . . . . . . . . . . . . . . . . . . . . . Total Part Build Rating . | . . . . . . . . . . . . . . . . . . . . . . Parts Repaired 4 | . 1 . . . . . 1 . . . 1 . 1 . . . . . . . . Time 145 | . 26 . . . . . 38 . . . 31 . 50 . . . . . . . . Parts Recycled . | . . . . . . . . . . . . . . . . . . . . . . Recycled Matter . | . . . . . . . . . . . . . . . . . . . . . . Retrieved Matter . | . . . . . . . . . . . . . . . . . . . . . . Retrieved Components 13 | . 2 2 . . . . . . . . 9 . . . . . . . . . . Parts Scanalyzed . | . . . . . . . . . . . . . . . . . . . . . . Part Schematics Acquired . | . . . . . . . . . . . . . . . . . . . . . . Parts Damaged . | . . . . . . . . . . . . . . . . . . . . . . Bothacking | -11 -10 -9 -9 -8 -8 -8 -7 -7 -7 -7 -6 -6 -6 -6 -5 -5 -5 -5 -5 -4 -4 ------------ Run | Scr Mat Mat Min Mat Sto Gar Fac Was Fac Gar Fac Gar Fac Gar Fac Was Fac Upp Upp Fac DSF Used RIF Installer 4 | . . . . . . 1 . . . 1 . 1 . 1 . . . . . . . Coupler Efficiency 3 | . . . . . . . . . . 1 . 1 . 1 . . . . . . . Robots Hacked 69 | . . . . . . . 5 5 . . 12 2 7 8 8 5 15 2 . . . Non-combat 17 | . . . . . . . 4 . . . 4 . 1 . 4 . 4 . . . . Combat 52 | . . . . . . . 1 5 . . 8 2 6 8 4 5 11 2 . . . Robot Hacks Applied 79 | . . . . . . . 9 6 . . 14 2 8 8 9 6 15 2 . . . parse_system 1 | . . . . . . . 1 . . . . . . . . . . . . . . find_chute 1 | . . . . . . . . . . . . . . . 1 . . . . . . deconstruct_machine 4 | . . . . . . . . . . . 1 . . . 2 . 1 . . . . find_fabricator 2 | . . . . . . . . . . . 1 . . . . . 1 . . . . drop_inventory 6 | . . . . . . . 2 . . . 1 . . . . . 3 . . . . purge_threat 3 | . . . . . . . 3 . . . . . . . . . . . . . . map_route 1 | . . . . . . . . . . . 1 . . . . . . . . . . ignore_targets 10 | . . . . . . . . 5 . . . . . . . 5 . . . . . find_garrison 4 | . . . . . . . . . . . 1 . 1 . 1 . 1 . . . . spike_heat 2 | . . . . . . . . . . . . . 1 1 . . . . . . . amplify_resonance 6 | . . . . . . . . 1 . . 2 . . . . 1 1 1 . . . wipe_record 1 | . . . . . . . . . . . 1 . . . . . . . . . . reboot_system 2 | . . . . . . . . . . . . . . . 1 . 1 . . . . go_dormant 1 | . . . . . . . . . . . . . . . . . 1 . . . . overwrite_iff 8 | . . . . . . . . . . . 2 . . 2 . . 3 1 . . . streamctrl_high 1 | . . . . . . . . . . . . 1 . . . . . . . . . formatsys_low 5 | . . . . . . . 2 . . . 1 . 1 . 1 . . . . . . formatsys_high 21 | . . . . . . . 1 . . . 3 1 5 5 3 . 3 . . . . Relay Couplers Released 43 | . . . . . . 12 3 . . 5 2 8 3 9 1 . . . . . . Machine Destruction 43 | . . . . . . 12 3 . . 5 2 8 3 9 1 . . . . . . Attached 25 | . . . . . . . 5 . . 2 4 2 3 4 1 . 4 . . . . Fabnet Peak Effective % 3 | . . . . . . . . . . . . . . . 3 3 3 3 3 1 1 Autooverrided 3 | . . . . . . . . . . . . . . . . . 2 1 . . . Robots Rewired . | . . . . . . . . . . . . . . . . . . . . . . Allies Hacked 6 | . . . . . . . . . . . . . 1 1 1 . 3 . . . . Hacks Repelled . | . . . . . . . . . . . . . . . . . . . . . . Allies | -11 -10 -9 -9 -8 -8 -8 -7 -7 -7 -7 -6 -6 -6 -6 -5 -5 -5 -5 -5 -4 -4 -------- Run | Scr Mat Mat Min Mat Sto Gar Fac Was Fac Gar Fac Gar Fac Gar Fac Was Fac Upp Upp Fac DSF Total Allies 70 | . . 1 . . 10 . 3 . . . 6 2 6 7 6 19 8 2 . . . Largest Group 19 | . . 1 . . 10 10 5 1 . . 3 2 6 6 7 19 12 1 . . . Highest-Rated Group 684 | . . 10 . . 173 173 93 14 . . 99 58 174 223 241 684 459 29 . . . Highest-Rated Ally 50 | . . 10 . . 29 29 32 14 . . 47 32 41 47 41 50 47 29 . . . Total Orders 8 | . . . . . . . 2 2 . . 1 . 1 2 . . . . . . . STAY 2 | . . . . . . . 1 . . . . . . 1 . . . . . . . AID 6 | . . . . . . . 1 2 . . 1 . 1 1 . . . . . . . Ally Attacks 534 | . . . . . . 85 61 . . . 20 11 14 67 55 114 97 10 . . . Total Damage 13540 | . . . . . . 1027 1092 . . . 403 308 361 1770 1374 4767 2308 130 . . . Kills 89 | . . . . . . 13 16 . . . 1 3 1 15 7 11 22 . . . . Allies Corrupted 4 | . . . . . . . . 1 . . . . . . . . 3 . . . . Allies Melted . | . . . . . . . . . . . . . . . . . . . . . . Intel | -11 -10 -9 -9 -8 -8 -8 -7 -7 -7 -7 -6 -6 -6 -6 -5 -5 -5 -5 -5 -4 -4 ------- Run | Scr Mat Mat Min Mat Sto Gar Fac Was Fac Gar Fac Gar Fac Gar Fac Was Fac Upp Upp Fac DSF Robot Analysis Total 1 | . . 1 . . . . . . . . . . . . . . . . . . . Derelict Logs Recovered 3 | . . . 1 . . . . . . . . . . . . . . 2 . . . Drone Launches . | . . . . . . . . . . . . . . . . . . . . . . Drone Recoveries . | . . . . . . . . . . . . . . . . . . . . . . Exploration | -11 -10 -9 -9 -8 -8 -8 -7 -7 -7 -7 -6 -6 -6 -6 -5 -5 -5 -5 -5 -4 -4 ------------- Run | Scr Mat Mat Min Mat Sto Gar Fac Was Fac Gar Fac Gar Fac Gar Fac Was Fac Upp Upp Fac DSF Turns Passed 18162 | 102 1247 1352 974 1550 151 954 1519 635 1236 587 1508 423 804 541 1168 619 1309 1067 93 55 268 Spaces Moved 8884 | 47 576 595 535 765 85 486 694 118 444 342 967 260 539 306 751 412 487 339 39 23 74 Core 36 | 6 . . . . . . . 1 . 2 . . . . . . . . . . 27 Treads 4563 | . 456 430 535 765 85 486 694 59 418 139 . . . . . . 51 339 39 23 44 Legs 3734 | 41 120 . . . . . . . . . 926 260 539 306 751 412 376 . . . 3 Wheels 225 | . . 165 . . . . . . . . . . . . . . 60 . . . . Hover 254 | . . . . . . . . 58 26 129 41 . . . . . . . . . . Flight 72 | . . . . . . . . . . 72 . . . . . . . . . . . Fastest Speed 29 | 50 120 125 170 170 170 170 170 170 165 29 56 120 120 122 122 122 120 240 240 240 50 Average Speed 162 | 118 151 153 170 170 170 170 170 375 257 117 118 120 121 122 133 122 219 264 240 240 175 Slowest Speed 890 | 190 160 170 170 170 170 170 170 600 580 245 120 120 122 122 192 122 890 400 240 240 400 Overloaded Moves . | . . . . . . . . . . . . . . . . . . . . . . Propulsion Burnouts . | . . . . . . . . . . . . . . . . . . . . . . Robots Hopped . | . . . . . . . . . . . . . . . . . . . . . . Cave-ins Triggered . | . . . . . . . . . . . . . . . . . . . . . . Exploration Rate (%) 39 | 3 74 54 90 35 10 65 23 84 12 40 25 51 16 34 22 95 16 48 10 2 54 Regions Visited 21 Branch Regions 4 Pre-discovered Areas 5 | . 1 1 1 . . . . . . . 1 . . . . . . 1 . . . Known Exits Taken 8 | . . 1 . 1 1 . . . 1 . 1 . 1 . . . 1 . . 1 . Unknown Exits Taken 5 | 1 1 . 1 . . . . . . . . . . . . . . 1 1 . . Scrap Searched 3 | . . . 2 . . . . . . . . . . . . . . 1 . . . Spaces Dug 67 | . 8 . . 5 . . 3 14 . 1 3 26 2 . 4 . 1 . . . . Terrain Destroyed 365 | 5 18 29 63 28 . 10 3 29 . 5 3 107 2 . 26 1 32 . . . 4 Melee 14 | . . . . 5 . . 3 . . 1 3 . 2 . . . . . . . . Projectile 23 | . 1 1 . . . . . . . . . 4 . . 5 1 7 . . . 4 AOE 328 | 5 17 28 63 23 . 10 . 29 . 4 . 103 . . 21 . 25 . . . . Terrain Rammed . | . . . . . . . . . . . . . . . . . . . . . . Walls Destroyed . | . . . . . . . . . . . . . . . . . . . . . . Machines Disabled . | . . . . . . . . . . . . . . . . . . . . . . Actions | -11 -10 -9 -9 -8 -8 -8 -7 -7 -7 -7 -6 -6 -6 -6 -5 -5 -5 -5 -5 -4 -4 --------- Run | Scr Mat Mat Min Mat Sto Gar Fac Was Fac Gar Fac Gar Fac Gar Fac Was Fac Upp Upp Fac DSF Total 11221 | 68 779 827 564 886 92 567 896 201 498 472 1235 340 666 430 900 489 650 435 39 24 163 Wait 733 | . 53 66 . 15 4 42 64 9 9 37 118 33 60 53 88 37 27 15 . . 3 Move 8864 | 46 575 594 534 764 84 484 694 117 444 340 966 258 539 305 751 411 486 338 38 22 74 Hop . | . . . . . . . . . . . . . . . . . . . . . . Pick Up 148 | 4 22 9 1 9 1 4 14 2 6 7 10 5 6 10 8 1 10 10 . . 9 Fast Attach 129 | 7 6 8 . 2 . 1 4 5 6 16 21 2 9 4 3 3 14 14 . . 4 Attach 62 | . 5 4 . 7 . 1 5 1 2 2 4 2 4 1 2 . 5 5 . 2 10 Detach 9 | . 5 . . . . . . . . . 1 1 . . . . . . . . 2 Swap 169 | . 8 15 8 15 1 8 25 3 3 6 15 5 7 9 7 4 21 7 1 . 1 Drop 168 | . 16 21 2 9 2 4 12 3 7 9 26 5 14 8 11 4 10 4 . . 1 Fire 758 | 11 89 110 19 60 . 20 52 61 4 34 37 28 18 23 29 12 69 42 . . 40 Melee 127 | . . . . 5 . 3 26 . 12 4 36 1 5 9 1 17 8 . . . . Ram . | . . . . . . . . . . . . . . . . . . . . . . Kick 4 | . . . . . . . . . . . 1 . 3 . . . . . . . . Crush 5 | . . . . . . . . . 5 . . . . . . . . . . . . Escape Stasis 25 | . . . . . . . . . . 17 . . . 8 . . . . . . . Rewire 20 | . . . . . . . . . . . . . 1 . . . . . . . 19 Trap . | . . . . . . . . . . . . . . . . . . . . . . Miscellaneous . | . . . . . . . . . . . . . . . . . . . . . . Route ------- -11/Scrapyard -10/Materials (discovered 4 exits: *Mat x3 / [*Min]) -9/Materials (discovered 2 exits: *Min x2) -9/Mines -8/Materials -8/Storage -8/Garrison (discovered 2 exits: *Fac x2) -7/Factory -7/Waste -7/Factory -7/Garrison -6/Factory (discovered 3 exits: Fac / [*Low] / Gar) -6/Garrison -6/Factory (discovered 3 exits: *Fac / [Low] / Gar) -6/Garrison -5/Factory (discovered 3 exits: Fac / *Upp / Ext) -5/Waste -5/Factory (discovered 4 exits: *Upp x2 / Ext x2) -5/Upper Caves -5/Upper Caves -4/Factory -4/DSF History --------- Turn | Location | Event 6 | -11/Scrapyard | Discovered new exit (range 16) 103 | -11/Scrapyard | Entered Materials 303 | -10/Materials | Build established: Mutant 353 | -10/Materials | Discovered new exit (range 3) 718 | -10/Materials | Repaired Lgt. Treads 856 | -10/Materials | Discovered new exit (range 9) 1334 | -10/Materials | Discovered new exit (range 10) 1348 | -10/Materials | Discovered new exit (range 16) 1350 | -10/Materials | Entered another Materials area 1350 | -9/Materials | Evolved 2 slots: Propulsion x1, Utility x1 1665 | -9/Materials | Identified exit to Mines 1944 | -9/Materials | Build established: Scavenger-Mutant 2150 | -9/Materials | First assault squad dispatched 2466 | -9/Materials | Build established: Mutant 2622 | -9/Materials | Central database locked down 2702 | -9/Materials | Entered Mines 2819 | -9/Mines | Core integrity fell below 50% 3078 | -9/Mines | Learned location of Recycling (-8) 3141 | -9/Mines | Discovered new exit (range 16) 3676 | -9/Mines | Entered Materials 3676 | -8/Materials | Evolved 2 slots: Propulsion x1, Utility x1 4068 | -8/Materials | Discovered new exit (range 10) 5140 | -8/Materials | Identified exit to Storage 5226 | -8/Materials | Entered Storage 5237 | -8/Storage | Identified exit to Garrison 5296 | -8/Storage | Assisted by bots powering up and referring to "LRC-V3" 5377 | -8/Storage | Entered Garrison 5377 | -8/Garrison | Accompanied by 10 allies 5386 | -8/Garrison | Installed Relay Interface Framework 5462 | -8/Garrison | Triggered checkpoint 5477 | -8/Garrison | Garrison Relay disabled 5554 | -8/Garrison | Triggered checkpoint 5558 | -8/Garrison | Triggered checkpoint 5596 | -8/Garrison | Triggered checkpoint 5596 | -8/Garrison | Build established: Commander-Mutant 5750 | -8/Garrison | Triggered checkpoint 5785 | -8/Garrison | Garrison Relay disabled 5835 | -8/Garrison | Discovered new exit (range 15) 5982 | -8/Garrison | Triggered checkpoint 6244 | -8/Garrison | Garrison Relay disabled 6298 | -8/Garrison | Discovered new exit (range 12) 6331 | -8/Garrison | Entered Factory 6331 | -7/Factory | Accompanied by 5 allies 6331 | -7/Factory | Evolved 2 slots: Utility x2 6439 | -7/Factory | Garrison activated, responded to threat 6875 | -7/Factory | Discovered new exit (range 14) 7121 | -7/Factory | Build established: Mutant 7496 | -7/Factory | Garrison activated, responded to threat 7583 | -7/Factory | Repaired Arm. Treads 7850 | -7/Factory | Sucked down chute 7850 | -7/Factory | Entered Waste 7865 | -7/Waste | EMP discharged 7865 | -7/Waste | System corruption reached 10% 7874 | -7/Waste | Spotted C-40 Crusher 7874 | -7/Waste | Spotted C-40 Crusher 7905 | -7/Waste | 1 allies followed down the chute 7918 | -7/Waste | Spotted C-40 Crusher 7918 | -7/Waste | Spotted C-40 Crusher 7928 | -7/Waste | Found Corrupted Imp. Powered Armor 7957 | -7/Waste | Spotted C-40 Crusher 7961 | -7/Waste | Spotted C-40 Crusher 7965 | -7/Waste | EMP discharged 7975 | -7/Waste | Crushed by Compactor (1 part destroyed, 1 dropped) 7978 | -7/Waste | Crushed by Compactor (1 part destroyed, 1 dropped) 7981 | -7/Waste | Crushed by Compactor (1 part destroyed, 1 dropped) 7982 | -7/Waste | Destroyed C-40 Crusher 8012 | -7/Waste | Lost 5 parts (1p3n1w) 8065 | -7/Waste | EMP discharged 8065 | -7/Waste | System corruption reached 30% 8165 | -7/Waste | EMP discharged 8265 | -7/Waste | EMP discharged 8365 | -7/Waste | EMP discharged 8433 | -7/Waste | Discovered new exit (range 10) 8465 | -7/Waste | EMP discharged 8485 | -7/Waste | Entered Factory 9721 | -7/Factory | Identified exit to Garrison 9721 | -7/Factory | Entered Garrison 9734 | -7/Garrison | Expanded RIF knowledge: Coupler Efficiency 9892 | -7/Garrison | Triggered checkpoint 9995 | -7/Garrison | Garrison Relay disabled 10124 | -7/Garrison | Core integrity fell below 50% 10140 | -7/Garrison | Lost 9 parts (1p4n3u1w) 10145 | -7/Garrison | Destroyed 12 combat bots 10285 | -7/Garrison | Discovered new exit (range 10) 10308 | -7/Garrison | Entered Factory 10308 | -6/Factory | Evolved 2 slots: Utility x2 10385 | -6/Factory | Lost 3 parts (1n2u) 10471 | -6/Factory | Repaired Lrn. Terrain Scanner 10909 | -6/Factory | Destroyed 7 combat bots 11444 | -6/Factory | Build established: Assassin 11451 | -6/Factory | System corruption reached 10% 11458 | -6/Factory | Discovered new exit (range 20) 11669 | -6/Factory | Discovered new exit (range 22) 11798 | -6/Factory | Identified exit to Garrison 11816 | -6/Factory | Entered Garrison 11816 | -6/Garrison | Accompanied by 2 allies 11857 | -6/Garrison | Triggered checkpoint 11873 | -6/Garrison | Triggered checkpoint 11909 | -6/Garrison | Destroyed 12 combat bots 12071 | -6/Garrison | Discovered new exit (range 12) 12092 | -6/Garrison | Expanded RIF knowledge: Coupler Efficiency 12136 | -6/Garrison | Triggered checkpoint 12150 | -6/Garrison | Garrison Relay disabled 12235 | -6/Garrison | Build established: Bothacker-Mutant 12239 | -6/Garrison | Entered Factory 12239 | -6/Factory | Accompanied by 1 ally 12502 | -6/Factory | Discovered new exit (range 12) 12738 | -6/Factory | Discovered new exit (range 24) 12985 | -6/Factory | Repaired Phase Cannon 13014 | -6/Factory | Identified exit to Garrison 13043 | -6/Factory | Entered Garrison 13043 | -6/Garrison | Accompanied by 6 allies 13050 | -6/Garrison | Expanded RIF knowledge: Coupler Efficiency 13134 | -6/Garrison | Triggered checkpoint 13147 | -6/Garrison | Garrison Relay disabled 13206 | -6/Garrison | Triggered checkpoint 13218 | -6/Garrison | Triggered checkpoint 13250 | -6/Garrison | Triggered checkpoint 13329 | -6/Garrison | Discovered new exit (range 9) 13348 | -6/Garrison | Triggered checkpoint 13363 | -6/Garrison | Garrison Relay disabled 13584 | -6/Garrison | Entered Factory 13584 | -5/Factory | Accompanied by 6 allies 13584 | -5/Factory | Evolved 2 slots: Power x1, Utility x1 13668 | -5/Factory | Build established: Botlord-Mutant 13745 | -5/Factory | Discovered new exit (range 20) 14024 | -5/Factory | Allied Derelicts emerged from ambush trap array 14515 | -5/Factory | Garrison activated, responded to threat 14667 | -5/Factory | Discovered new exit (range 23) 14696 | -5/Factory | Discovered new exit (range 15) 14752 | -5/Factory | Sucked down chute 14752 | -5/Factory | Entered Waste 14770 | -5/Waste | 2 allies followed down the chute 14788 | -5/Waste | Spotted C-40 Crusher 14789 | -5/Waste | Spotted C-40 Crusher 14790 | -5/Waste | Spotted C-40 Crusher 14815 | -5/Waste | Spotted C-40 Crusher 14847 | -5/Waste | Spotted C-40 Crusher 14875 | -5/Waste | Spotted C-40 Crusher 14964 | -5/Waste | Warlord forces began an assault 14968 | -5/Waste | Allies destroyed C-40 Crusher 14984 | -5/Waste | Allies destroyed C-40 Crusher 14996 | -5/Waste | Allies destroyed C-40 Crusher 15028 | -5/Waste | Allies destroyed C-40 Crusher 15039 | -5/Waste | Allies destroyed C-40 Crusher 15083 | -5/Waste | Discovered new exit (range 16) 15371 | -5/Waste | Entered Factory 15371 | -5/Factory | Accompanied by 12 allies 15397 | -5/Factory | Identified exit to Upper Caves 15397 | -5/Factory | Identified exit to Extension 15756 | -5/Factory | Garrison activated, responded to threat 15965 | -5/Factory | System corruption reached 10% 15971 | -5/Factory | First assault squad dispatched 16139 | -5/Factory | Build established: Bothacker-Mutant 16505 | -5/Factory | System corruption reached 30% 16680 | -5/Factory | Entered Upper Caves 16928 | -5/Upper Caves | Attracted the attention of an 0b10 checkpoint 16982 | -5/Upper Caves | Lost 3 parts (1p1u1w) 17187 | -5/Upper Caves | Spotted B-75 Beast 17216 | -5/Upper Caves | Destroyed B-75 Beast 17237 | -5/Upper Caves | Lost 4 parts (1p2n1u) 17663 | -5/Upper Caves | Learned Factory terminal intel 17713 | -5/Upper Caves | Discovered new exit (range 13) 17747 | -5/Upper Caves | Entered another Upper Caves area 17754 | -5/Upper Caves | Discovered new exit (range 13) 17840 | -5/Upper Caves | Entered Factory 17840 | -4/Factory | Evolved 2 slots: Propulsion x1, Utility x1 17841 | -4/Factory | Loaded intel: 25 terminal locations 17895 | -4/Factory | Identified exit to DSF 17895 | -4/Factory | Entered DSF 17965 | -4/DSF | Additional patrols routed to DSF 17990 | -4/DSF | Found Prototype Hackware 17990 | -4/DSF | Identified Exp. Hacking Suite 17994 | -4/DSF | Found Exp. Hacking Suite 17997 | -4/DSF | Found Exp. Hacking Suite 18001 | -4/DSF | Found Exp. Hacking Suite 18113 | -4/DSF | Core integrity fell below 50% 18123 | -4/DSF | System corruption reached 10% 18144 | -4/DSF | Released all parts (7) 18150 | -4/DSF | Core integrity fell below 20% 18163 | -4/DSF | Destroyed by X-77 Beamer with Gatling Laser Last Messages --------------- 18144_ Released Relay Coupler [Brawler]. 18144_ Released Cargo Storage Unit. 18144_ Released Relay Coupler [Swarmer]. 18144_ Released Broken Adv. Terrain Scan Processor. 18144_ Released Hvy. Plasma Cannon. 18145_ Acquired Exp. Hacking Suite. 18147_ Wall collapses. 18147_ Dropped Broken Med. Treads. 18147_ S-27 Virus knocked back. 18148_ Acquired Exp. Hacking Suite. 18149_ Slug penetrates Wall. 18149_ Penetrated by Slug. 18151_ Acquired Imp. Remote Datajack. 18152_ Slug penetrates Wall. 18153_ Triggered Alarm Trap. 18153_ An alarm sounds. 18157_ System corrupted: Energy discharge (-7). 18162_ Knocked back. 18162_ Exp. Hacking Suite destroyed. 18162_ S-27 Virus destroyed. Map ----- +----------------------------------------------------+ | ????????????????????????????????????????????????? | | ????????????????????????????????????????????????? | | ????????????????????????????????????????????????? | | ????????????????????????????????????????????????? | | ??#?????????????????????????????????????????????? | | ????????????????????????????????????????????????? | | #????????????????????? ?????????????????????????? | | ??????????#????#?##?????????????????????????????? | | ?#????????#????##???????????????????????????????? | | ?#???????????????#?#????? ??????????????????????? | | ?????#?#???????????? ??? ???????????????????????? | | ?????????????##??????#??????????????????????????? | | ?????#???????????#???= ???????????????????????? | | ?#????????#??????????= ???????????????????????? | | ??????????????###????= ?????#?????????????????? | | #????##########;####?# ???????????????????????? | | ?????# ""***;!!!### #???? ?????????????????? | | ????## #"***"!!!##A !%?????? ???????????????? | | ??#?#" % x = ?????????????????????? | | ????## %%] xH% ????????????????????? | | ##??#"% %%! ???????? ????????????? | | ???##" !%=!!!"===##A #????? ???????????????? | | ???# " =#"!!!"===#?# #?#????????????????????? | | ???#####%%############ ###?????#??????????????? | | ?#????#!*[!!#####??#!! ==#???#????????????????? | | ??????#!|!! / ###?#!! @=#????????????????????? | | #?#?#?#]!!!!## #?#!! ==#??#?????#???????????? | | #?????#"!!####* #?### ###????????????????????? | | ?????##!=!/!+%=###?# !!#?##????#????????????? | | ??#???#!= ==####???# % !!#????????????????????? | | ?#?#?###!]########## !!#????????????????????? | | ?????###| ###!!# ### ###????????????????????? | | ??####"%] ##!!# ###s ###?#??????????????????? | | ?##"""""% #????????????????????? | | ??#"##"" #????????????????????? | | ?????#"" ""## # #==!!! #??????????#?????????? | | ?????#"" ""#########==!!! ##???????????????????? | | #????####"##???????#########????????????????????? | | ???#????#"#?????#?????##????????????????????????? | | ??#????#""#??#????#?????????#??#????????????????? | | #???#???###?????##???????#?#????????????????????? | | #??#?????????#????#????#?#?????#????????????????? | | ?????????#???????????#??????????????????????????? | | ?#????????????#????#?????????#??????????????????? | | ???????????????????????#????????????????????????? | | | | | | | | | | | +----------------------------------------------------+ Best States ------------- Heat Dissipation 64 Coolant Potential 80 Energy Generation 33 Energy Capacity 900 Matter Stores 300 Matter Capacity 300 Sight Range 16 Terrain Scan Range 24 Terrain Scan Density 210 Armor Coverage 825 Resistance: KI 30 Resistance: TH 20 Utility Shielding 66 Evasion (%) 64 Targeting Accuracy 6 Melee Accuracy 16 Recoil Reduction 5 Offensive Hacking 32 Relay Coupler Types 5 Relay Coupler Value 171 Authchip Count 5 Item Schematics ----------------- Hcp. Storage Unit | -10/Materials | Hacked Adv. Shield Generator | -7/Factory | Hacked KE Penetrator | -7/Factory | Hacked HERF Cannon | -6/Factory | Hacked Robot Schematics ------------------ None Fabricated ------------ Nothing Alien Tech Used ----------------- None Achievements -------------- None Challenges ------------ None Game ------ Seed MinesnifferActiveNukerbomber Manual? 0 Play Time 02:03:17 Cumulative 577.6 hours Start 2022.04.02 @ 18:50:10 End 2022.04.02 @ 20:49:56 Sessions 1 Manual Loads 0 Difficulty Rogue Special Mode None Game No. 361 Rogue 361 Adventurer 0 Explorer 0 Win Type - Total 7 Types 5/0/1/0/1/0/0/0/0 Lore% 85 Gallery% 86 Achievement% 74 Wizard Run 0 Options --------- ASCII 0 Keyboard 0 Movement Mouse Keybinds 1 Fullscreen 2 Font 24/Smallcaps Map View 68x50 Tactical HUD 1 Map Filters NONE Filters NONE Steam 1 RUN: bcc7c2bb-7511-4f2b-99f8-056a1533b360